lending/lending_fUSD_20241120
["ID","MTS","AMOUNT","RATE_DAILY","PERIOD"]
[342785916,1732140756186,-455.26570248,0.00056712,120]
[342785917,1732140756198,-1420.27,0.00056712,120]
[342785918,1732140756208,-500.0,0.00056712,120]
[342785919,1732140756217,-500.0,0.00056712,120]
[342785920,1732140756227,-500.0,0.00056712,120]
[342785921,1732140756238,-500.0,0.00056712,120]
[342785922,1732140756249,-500.0,0.00056712,120]
[342785923,1732140756258,-500.0,0.00056712,120]
[342785924,1732140756268,-1747.91,0.00056712,120]
[342785925,1732140756279,-500.0,0.00056712,120]
[342785926,1732140756289,-500.0,0.00056712,120]
[342785927,1732140756299,-500.0,0.00056712,120]
[342785928,1732140756310,-1026.85,0.00056712,120]
[342785929,1732140756322,-500.0,0.00056712,120]
[342785930,1732140756333,-500.0,0.00056712,120]
[342785931,1732140756344,-409.92221351,0.00056712,120]
[342785932,1732140756353,-604.40260242,0.00056712,120]
[342785933,1732140756363,-813.38,0.00056712,120]
[342785934,1732140756373,-1208.59,0.00056712,120]
[342785935,1732140756384,-1929.2,0.00056712,120]
[342785936,1732140756395,-509.94,0.00056712,120]
[342785937,1732140756404,-500.0,0.00056712,120]
[342785938,1732140756414,-547.23,0.00056712,120]
[342785939,1732140756423,-2243.95,0.00056712,120]
[342785940,1732140756433,-983.72,0.00056712,120]
[342785941,1732140756443,-1133.87,0.00056712,120]
[342785942,1732140756453,-500.0,0.00056712,120]
[342785943,1732140756462,-500.0,0.00056712,120]
[342785944,1732140756471,-500.0,0.00056712,120]
[342785945,1732140756480,-500.0,0.00056712,120]
[342785946,1732140756490,-502.69379621,0.00056712,120]
[342785947,1732140756499,-500.0,0.00056712,120]
[342785948,1732140756508,-500.0,0.00056712,120]
[342785949,1732140756517,-500.0,0.00056712,120]
[342785950,1732140756527,-500.0,0.00056712,120]
[342785951,1732140756536,-837.29,0.00056712,120]
[342785952,1732140756545,-601.65,0.00056712,120]
[342785953,1732140756555,-500.0,0.00056712,120]
[342785954,1732140756564,-500.0,0.00056712,120]
[342785955,1732140756573,-500.0,0.00056712,120]
[342785956,1732140756583,-500.0,0.00056712,120]
[342785957,1732140756592,-1244.02,0.00056712,120]
[342785958,1732140756601,-500.0,0.00056712,120]
[342785959,1732140756611,-500.0,0.00056712,120]
[342785960,1732140756620,-581.48,0.00056712,120]
[342785961,1732140756630,-500.0,0.00056712,120]
[342785962,1732140756639,-912.77,0.00056712,120]
[342785963,1732140756649,-1640.54,0.00056712,120]
[342785964,1732140756658,-822.59,0.00056712,120]
[342785965,1732140756668,-500.0,0.00056712,120]
[342785966,1732140756677,-957.41,0.00056712,120]
[342785967,1732140756687,-3305.34,0.00056712,120]
[342785968,1732140756697,-546.92,0.00056712,120]
[342785969,1732140756706,-512.11862826,0.00056712,120]
[342785970,1732140756715,-500.0,0.00056712,120]
[342785971,1732140756725,-500.0,0.00056712,120]
[342785972,1732140756735,-500.0,0.00056712,120]
[342785973,1732140756744,-1590.28,0.00056712,120]
[342785974,1732140756753,-500.0,0.00056712,120]
[342785975,1732140756762,-500.0,0.00056712,120]
[342785976,1732140756771,-4503.54,0.00056712,120]
[342785977,1732140756781,-2459.56,0.00056712,120]
[342785978,1732140756790,-500.0,0.00056712,120]
[342785979,1732140756799,-5054.97,0.00056712,120]
[342785980,1732140756808,-500.0,0.00056712,120]
[342785981,1732140756817,-1237.62,0.00056712,120]
[342785982,1732140756827,-500.0,0.00056712,120]
[342785983,1732140756836,-1805.81,0.00056712,120]
[342785984,1732140756846,-1705.69,0.00056712,120]
[342785985,1732140756855,-730.02,0.00056712,120]
[342785986,1732140756864,-500.0,0.00056712,120]
[342785987,1732140756874,-556.28,0.00056712,120]
[342785988,1732140756883,-1293.03,0.00056712,120]
[342785989,1732140756893,-735.83,0.00056712,120]
[342785990,1732140756903,-500.0,0.00056712,120]
[342785991,1732140756912,-875.45,0.00056712,120]
[342785992,1732140756923,-500.0,0.00056712,120]
[342785993,1732140756932,-500.0,0.00056712,120]
[342785994,1732140756943,-500.0,0.00056712,120]
[342785995,1732140756952,-2355.16,0.00056712,120]
[342785996,1732140756962,-529.9,0.00056712,120]
[342785997,1732140756971,-1626.59,0.00056712,120]
[342785998,1732140756980,-1065.14,0.00056712,120]
[342785999,1732140756990,-211.88091979,0.00056712,120]
[342786000,1732140756999,-500.0,0.00056712,120]
[342786001,1732140757010,-1000.0,0.00056712,30]
[342786002,1732140757020,-899.71,0.00056712,120]
[342786003,1732140757030,-1031.07,0.00056712,120]
[342786004,1732140757039,-500.0,0.00056712,120]
[342786005,1732140757049,-2139.66,0.00056712,120]
[342786006,1732140757057,-500.0,0.00056712,120]
[342786007,1732140757066,-1746.7,0.00056712,120]
[342786008,1732140757076,-500.0,0.00056712,120]
[342786009,1732140757085,-500.0,0.00056712,120]
[342786010,1732140757094,-525.57,0.00056712,120]
[342786011,1732140757104,-1007.82,0.00056712,120]
[342786012,1732140757113,-349.16739981,0.00056712,120]
[342786013,1732140757122,-525.94,0.00056712,120]
[342786014,1732140757131,-500.0,0.00056712,120]
[342786015,1732140757140,-500.0,0.00056712,120]
[342786016,1732140757154,-500.0,0.00056712,120]
[342786017,1732140757163,-800.11,0.00056712,120]
[342786018,1732140757172,-3332.16,0.00056712,120]
[342786019,1732140757182,-2450.69,0.00056712,120]
[342786020,1732140757192,-500.0,0.00056712,120]
[342786021,1732140757201,-500.0,0.00056712,120]
[342786022,1732140757210,-1123.27,0.00056712,120]
[342786023,1732140757220,-1393.96,0.00056712,120]
[342786024,1732140757231,-967.57,0.00056712,120]
[342786025,1732140757241,-187.42473391,0.00056712,120]
[342786026,1732140757250,-500.0,0.00056712,120]
[342786027,1732140757259,-1357.65,0.00056712,120]
[342786028,1732140757269,-500.0,0.00056712,120]
[342786029,1732140757278,-1642.87,0.00056712,120]
[342786030,1732140757287,-500.0,0.00056712,120]
[342786031,1732140757297,-1717.17,0.00056712,120]
[342786032,1732140757307,-1588.79,0.00056712,90]
[342786033,1732140757316,-500.0,0.00056712,120]
[342786034,1732140757325,-1853.26,0.00056712,120]
[342786035,1732140757335,-500.0,0.00056712,120]
[342786036,1732140757344,-500.0,0.00056712,120]
[342786037,1732140757353,-500.0,0.00056712,120]
[342786038,1732140757362,-241.20066437,0.00056712,120]
[342786039,1732140757371,-500.0,0.00056712,120]
[342786040,1732140757382,-500.0,0.00056712,120]
[342786041,1732140757391,-700.0,0.00056712,120]
[342786042,1732140757401,-500.0,0.00056712,120]
[342786043,1732140757411,-2546.22,0.00056712,120]
[342786044,1732140757422,-500.0,0.00056712,120]
[342786045,1732140757433,-500.0,0.00056712,120]
[342786046,1732140757443,-2834.37,0.00056712,120]
[342786047,1732140757452,-250.0,0.00056712,120]
[342786048,1732140757461,-500.0,0.00056712,120]
[342786049,1732140757471,-500.0,0.00056712,120]
[342786050,1732140757481,-1334.03,0.00056712,120]
[342786051,1732140757490,-500.0,0.00056712,120]
[342786052,1732140757500,-500.0,0.00056712,120]
[342786053,1732140757509,-2885.23,0.00056712,120]
[342786054,1732140757518,-4453.81,0.00056712,120]
[342786055,1732140757528,-578.88672489,0.00056712,120]
[342786056,1732140757538,-500.0,0.00056712,120]
[342786057,1732140757547,-2241.05,0.00056712,120]
[342786058,1732140757557,-500.0,0.00056712,120]
[342786059,1732140757567,-2217.98,0.00056712,120]
[342786060,1732140757577,-500.0,0.00056712,120]
[342786061,1732140757587,-500.0,0.00056712,120]
[342786062,1732140757597,-500.0,0.00056712,120]
[342786063,1732140757607,-500.0,0.00056712,120]
[342786064,1732140757617,-800.61,0.00056712,120]
[342786065,1732140757627,-1402.45,0.00056712,60]
[342786066,1732140757637,-500.0,0.00056712,120]
[342786067,1732140757647,-500.0,0.00056712,120]
[342786068,1732140757657,-932.27,0.00056712,120]
[342786069,1732140757667,-1004.07,0.00056712,120]
[342786070,1732140757677,-500.0,0.00056712,120]
[342786071,1732140757687,-2000.63,0.00056712,120]
[342786072,1732140757698,-703.55,0.00056712,120]
[342786073,1732140757708,-2241.76,0.00056712,120]
[342786074,1732140757718,-1132.68,0.00056712,120]
[342786075,1732140757728,-596.11,0.00056712,120]
[342786076,1732140757738,-794.52,0.00056712,120]
[342786077,1732140757747,-833.99,0.00056712,120]
[342786078,1732140757757,-2777.12,0.00056712,120]
[342786079,1732140757767,-1309.21,0.00056712,120]
[342786080,1732140757778,-1558.24,0.00056712,120]
[342786081,1732140757788,-500.0,0.00056712,120]
[342786082,1732140757800,-589.46383786,0.00056712,120]
[342786083,1732140757811,-501.3245568,0.00056712,120]
[342786084,1732140757821,-500.0,0.00056712,120]
[342786085,1732140757832,-567.26673546,0.00056712,120]
[342786086,1732140757843,-500.0,0.00056712,120]
[342786087,1732140757853,-500.08,0.00056712,120]
[342786088,1732140757863,-500.0,0.00056712,120]
[342786089,1732140757872,-500.0,0.00056712,60]
[342786090,1732140757884,-500.0,0.00056712,120]
[342786091,1732140757895,-2539.87,0.00056712,120]
[342786092,1732140757904,-500.0,0.00056712,120]
[342786093,1732140757915,-500.0,0.00056712,120]
[342786094,1732140757925,-831.36,0.00056712,120]
[342786095,1732140757936,-500.0,0.00056712,120]
[342786096,1732140757946,-500.0,0.00056712,120]
[342786097,1732140757956,-1229.75,0.00056712,120]
[342786098,1732140757966,-1743.89,0.00056712,120]
[342786099,1732140757976,-500.0,0.00056712,120]
[342786100,1732140757986,-500.0,0.00056712,120]
[342786101,1732140757996,-1365.28,0.00056712,120]
[342786102,1732140758006,-1290.22,0.00056712,120]
[342786103,1732140758015,-507.82,0.00056712,120]
[342786104,1732140758025,-500.0,0.00056712,120]
[342786105,1732140758035,-500.0,0.00056712,120]
[342786106,1732140758044,-3045.72,0.00056712,120]
[342786107,1732140758055,-500.0,0.00056712,120]
[342786108,1732140758064,-916.6,0.00056712,120]
[342786109,1732140758075,-500.0,0.00056712,120]
[342786110,1732140758085,-500.0,0.00056712,120]
[342786111,1732140758094,-610.75,0.00056712,120]
[342786112,1732140758104,-500.0,0.00056712,120]
[342786113,1732140758114,-1278.95,0.00056712,120]
[342786114,1732140758125,-500.0,0.00056712,120]
[342786115,1732140758134,-502.86,0.00056712,120]
[342786116,1732140758147,-504.52,0.00056712,120]
[342786117,1732140758158,-500.0,0.00056712,120]
[342786118,1732140758168,-500.0,0.00056712,120]
[342786119,1732140758177,-500.0,0.00056712,120]
[342786120,1732140758187,-702.18,0.00056712,120]
[342786121,1732140758199,-500.0,0.00056712,120]
[342786122,1732140758209,-3583.6,0.00056712,120]
[342786123,1732140758220,-1685.95,0.00056712,120]
[342786124,1732140758230,-500.0,0.00056712,120]
[342786125,1732140758240,-604.54113531,0.00056712,120]
[342786126,1732140758250,-500.0,0.00056712,120]
[342786127,1732140758260,-5689.68,0.00056712,120]
[342786128,1732140758271,-1343.23,0.00056712,120]
[342786129,1732140758281,-500.0,0.00056712,120]
[342786130,1732140758290,-500.0,0.00056712,120]
[342786131,1732140758303,-553.27,0.00056712,120]
[342786132,1732140758314,-500.0,0.00056712,120]
[342786133,1732140758324,-500.0,0.00056712,120]
[342786134,1732140758334,-500.0,0.00056712,120]
[342786135,1732140758344,-500.0,0.00056712,120]
[342786136,1732140758354,-500.0,0.00056712,120]
[342786137,1732140758364,-1250.26,0.00056712,120]
[342786138,1732140758374,-982.33,0.00056712,120]
[342786139,1732140758385,-500.0,0.00056712,120]
[342786140,1732140758396,-667.62,0.00056712,120]
[342786141,1732140758405,-500.0,0.00056712,120]
[342786142,1732140758415,-500.0,0.00056712,120]
[342786143,1732140758425,-609.95,0.00056712,120]
[342786144,1732140758435,-500.0,0.00056712,120]
[342786145,1732140758445,-500.0,0.00056712,120]
[342786146,1732140758455,-500.0,0.00056712,120]
[342786147,1732140758464,-553.05943803,0.00056712,120]
[342786148,1732140758474,-808.05,0.00056712,120]
[342786149,1732140758484,-522.08,0.00056712,120]
[342786150,1732140758494,-1111.01,0.00056712,120]
[342786151,1732140758504,-671.78,0.00056712,120]
[342786152,1732140758513,-500.0,0.00056712,120]
[342786153,1732140758524,-1704.12,0.00056712,120]
[342786154,1732140758533,-501.06978328,0.00056712,120]
[342786155,1732140758543,-2102.13,0.00056712,120]
[342786156,1732140758554,-500.0,0.00056712,120]
[342786157,1732140758563,-500.0,0.00056712,120]
[342786158,1732140758572,-675.74,0.00056712,120]
[342786159,1732140758582,-907.83,0.00056712,120]
[342786160,1732140758592,-500.0,0.00056712,120]
[342786161,1732140758602,-1034.91,0.00056712,120]
[342786162,1732140758612,-500.0,0.00056712,120]
[342786163,1732140758622,-5007.0,0.00056712,120]
[342786164,1732140758631,-2296.76,0.00056712,20]
[342786165,1732140758641,-500.0,0.00056712,120]
[342786166,1732140758651,-245.22970706,0.00056712,120]
[342786167,1732140758661,-500.0,0.00056712,120]
[342786168,1732140758671,-500.0,0.00056712,120]
[342786169,1732140758680,-500.0,0.00056712,120]
[342786170,1732140758690,-639.85303872,0.00056712,120]
[342786171,1732140758701,-798.21,0.00056712,120]
[342786172,1732140758711,-500.0,0.00056712,120]
[342786173,1732140758721,-647.62,0.00056712,120]
[342786174,1732140758731,-414.83003578,0.00056712,120]
[342786175,1732140758740,-500.0,0.00056712,120]
[342786176,1732140758749,-500.0,0.00056712,120]
[342786177,1732140758759,-500.0,0.00056712,120]
[342786178,1732140758768,-2489.82,0.00056712,120]
[342786179,1732140758778,-2045.61,0.00056712,120]
[342786180,1732140758788,-500.0,0.00056712,120]
[342786181,1732140758798,-500.0,0.00056712,120]
[342786182,1732140758808,-500.0,0.00056712,120]
[342786183,1732140758819,-500.0,0.00056712,120]
[342786184,1732140758828,-500.0,0.00056712,120]
[342786185,1732140758838,-972.27,0.00056712,120]
[342786186,1732140758848,-721.64,0.00056712,120]
[342786187,1732140758857,-1208.94,0.00056712,120]
[342786188,1732140758867,-500.0,0.00056712,120]
[342786189,1732140758877,-1591.78,0.00056712,120]
[342786190,1732140758887,-1887.72,0.00056712,120]
[342786191,1732140758897,-500.0,0.00056712,120]
[342786192,1732140758907,-850.0,0.00056712,120]
[342786193,1732140758916,-852.01,0.00056712,120]
[342786194,1732140758926,-872.84,0.00056712,120]
[342786195,1732140758936,-500.0,0.00056712,120]
[342786196,1732140758946,-500.0,0.00056712,120]
[342786197,1732140758956,-500.0,0.00056712,120]
[342786198,1732140758966,-500.0,0.00056712,120]
[342786199,1732140758975,-846.36,0.00056712,120]
[342786200,1732140758985,-865.82,0.00056712,120]
[342786201,1732140758996,-1191.88,0.00056712,120]
[342786202,1732140759006,-406.00167887,0.00056712,120]
[342786203,1732140759016,-516.0334843,0.00056712,120]
[342786204,1732140759027,-1792.7,0.00056712,120]
[342786205,1732140759037,-5749.44,0.00056712,120]
[342786206,1732140759046,-500.0,0.00056712,120]
[342786207,1732140759056,-500.0,0.00056712,120]
[342786208,1732140759065,-500.0,0.00056712,120]
[342786209,1732140759075,-500.0,0.00056712,120]
[342786210,1732140759085,-500.0,0.00056712,120]
[342786211,1732140759095,-706.66,0.00056712,120]
[342786212,1732140759104,-500.0,0.00056712,120]
[342786213,1732140759114,-571.98,0.00056712,120]
[342786214,1732140759124,-669.11,0.00056712,120]
[342786215,1732140759135,-500.0,0.00056712,120]
[342786216,1732140759144,-600.76,0.00056712,120]
[342786217,1732140759157,-688.41,0.00056712,120]
[342786218,1732140759167,-710.75,0.00056712,120]
[342786219,1732140759178,-2203.93,0.00056712,120]
[342786220,1732140759187,-1092.67,0.00056712,120]
[342786221,1732140759342,-723.74,0.00056712,120]
[342786222,1732140759356,-962.75,0.00056712,120]
[342786223,1732140759366,-988.55,0.00056712,120]
[342786224,1732140759375,-500.0,0.00056712,120]
[342786225,1732140759385,-2304.78,0.00056712,120]
[342786226,1732140759394,-690.54,0.00056712,120]
[342786227,1732140759404,-500.0,0.00056712,120]
[342786228,1732140759414,-500.0,0.00056712,120]
[342786229,1732140759423,-843.9,0.00056712,120]
[342786230,1732140759432,-1647.87,0.00056712,120]
[342786231,1732140759441,-500.0,0.00056712,120]
[342786232,1732140759451,-850.55,0.00056712,120]
[342786233,1732140759461,-809.67,0.00056712,120]
[342786234,1732140759470,-500.0,0.00056712,120]
[342786235,1732140759479,-683.97,0.00056712,120]
[342786236,1732140759489,-834.1,0.00056712,120]
[342786237,1732140759499,-914.77,0.00056712,120]
[342786238,1732140759508,-1141.14,0.00056712,120]
[342786239,1732140759518,-500.0,0.00056712,120]
[342786240,1732140759528,-624.59,0.00056712,120]
[342786241,1732140759538,-500.0,0.00056712,120]
[342786242,1732140759547,-1109.8,0.00056712,120]
[342786243,1732140759557,-500.0,0.00056712,120]
[342786244,1732140759566,-1752.52,0.00056712,120]
[342786245,1732140759576,-1096.46,0.00056712,120]
[342786246,1732140759586,-500.0,0.00056712,120]
[342786247,1732140759595,-950.07,0.00056712,120]
[342786248,1732140759605,-500.0,0.00056712,120]
[342786249,1732140759615,-395.56181442,0.00056712,120]
[342786250,1732140759624,-2142.92,0.00056712,120]
[342786251,1732140759634,-1422.3,0.00056712,120]
[342786252,1732140759644,-829.0,0.00056712,120]
[342786253,1732140759654,-575.3,0.00056712,120]
[342786254,1732140759664,-500.0,0.00056712,120]
[342786255,1732140759674,-500.0,0.00056712,120]
[342786256,1732140759684,-737.82,0.00056712,120]
[342786257,1732140759694,-500.0,0.00056712,120]
[342786258,1732140759703,-666.21,0.00056712,120]
[342786259,1732140759713,-1778.99,0.00056712,120]
[342786260,1732140759722,-1715.56,0.00056712,120]
[342786261,1732140759731,-1062.65,0.00056712,120]
[342786262,1732140759741,-500.0,0.00056712,120]
[342786263,1732140759751,-500.0,0.00056712,120]
[342786264,1732140759761,-500.0,0.00056712,120]
[342786265,1732140759770,-2346.15,0.00056712,120]
[342786266,1732140759780,-500.0,0.00056712,120]
[342786267,1732140759790,-949.47,0.00056712,120]
[342786268,1732140759801,-1351.22,0.00056712,120]
[342786269,1732140759810,-500.0,0.00056712,120]
[342786270,1732140759820,-888.32,0.00056712,120]
[342786271,1732140759831,-642.33,0.00056712,120]
[342786272,1732140759843,-880.81,0.00056712,120]
[342786273,1732140759852,-597.52,0.00056712,120]
[342786274,1732140759862,-6141.54,0.00056712,120]
[342786275,1732140759872,-500.0,0.00056712,120]
[342786276,1732140759884,-1511.19,0.00056712,120]
[342786277,1732140759894,-1086.04,0.00056712,120]
[342786278,1732140759905,-668.34,0.00056712,120]
[342786279,1732140759915,-1351.32,0.00056712,120]
[342786280,1732140759926,-1492.04,0.00056712,120]
[342786281,1732140759935,-926.38,0.00056712,120]
[342786282,1732140759947,-695.0,0.00056712,120]
[342786283,1732140759956,-500.0,0.00056712,120]
[342786284,1732140759966,-5287.99,0.00056712,120]
[342786285,1732140759976,-500.0,0.00056712,120]
[342786286,1732140759985,-500.0,0.00056712,120]
[342786287,1732140759994,-1482.2,0.00056712,120]
[342786288,1732140760004,-845.23,0.00056712,120]
[342786289,1732140760016,-500.0,0.00056712,120]
[342786290,1732140760026,-500.0,0.00056712,120]
[342786291,1732140760037,-1260.12,0.00056712,120]
[342786292,1732140760047,-500.0,0.00056712,120]
[342786293,1732140760058,-1283.29,0.00056712,120]
[342786294,1732140760068,-1393.35,0.00056712,120]
[342786295,1732140760078,-500.0,0.00056712,120]
[342786296,1732140760089,-500.0,0.00056712,120]
[342786297,1732140760098,-500.0,0.00056712,120]
[342786298,1732140760108,-500.0,0.00056712,120]
[342786299,1732140760118,-2642.2,0.00056712,120]
[342786300,1732140760127,-1536.4,0.00056712,120]
[342786301,1732140760137,-179.38234715,0.00056712,120]
[342786302,1732140760148,-3168.55,0.00056712,120]
[342786303,1732140760162,-500.0,0.00056712,120]
[342786304,1732140760172,-500.0,0.00056712,120]
[342786305,1732140760182,-500.0,0.00056712,120]
[342786306,1732140760194,-827.35,0.00056712,120]
[342786307,1732140760203,-500.0,0.00056712,120]
[342786308,1732140760213,-1702.89,0.00056712,120]
[342786309,1732140760225,-500.0,0.00056712,120]
[342786310,1732140760235,-500.0,0.00056712,120]
[342786311,1732140760244,-641.78,0.00056712,120]
[342786312,1732140760255,-1344.44,0.00056712,120]
[342786313,1732140760265,-1090.73,0.00056712,120]
[342786314,1732140760275,-412.52015867,0.00056712,120]
[342786315,1732140760285,-500.0,0.00056712,120]
[342786316,1732140760294,-52850.67,0.00056712,120]
[342786317,1732140760304,-1753.45,0.00056712,120]
[342786318,1732140760314,-1006.78,0.00056712,120]
[342786319,1732140760324,-500.0,0.00056712,120]
[342786320,1732140760333,-1064.88,0.00056712,120]
[342786321,1732140760342,-500.0,0.00056712,120]
[342786322,1732140760352,-622.97,0.00056712,120]
[342786323,1732140760362,-500.0,0.00056712,120]
[342786324,1732140760372,-3042.17,0.00056712,120]
[342786325,1732140760381,-1736.39,0.00056712,120]
[342786326,1732140760392,-2339.16,0.00056712,120]
[342786327,1732140760401,-500.0,0.00056712,120]
[342786328,1732140760411,-700.57,0.00056712,120]
[342786329,1732140760421,-585.35,0.00056712,120]
[342786330,1732140760430,-523.5,0.00056712,120]
[342786331,1732140760439,-2627.11,0.00056712,120]
[342786332,1732140760451,-1522.74,0.00056712,120]
[342786333,1732140760464,-1766.0,0.00056712,120]
[342786334,1732140760474,-693.99,0.00056712,120]
[342786335,1732140760484,-5335.95,0.00056712,120]
[342786336,1732140760494,-500.0,0.00056712,120]
[342786337,1732140760504,-973.18,0.00056712,120]
[342786338,1732140760514,-500.0,0.00056712,120]
[342786339,1732140760524,-500.0,0.00056712,120]
[342786340,1732140760534,-778.26,0.00056712,120]
[342786341,1732140760543,-432.62031943,0.00056712,120]
[342786342,1732140760552,-500.0,0.00056712,120]
[342786343,1732140760562,-500.0,0.00056712,120]
[342786344,1732140760571,-561.95,0.00056712,120]
[342786345,1732140760580,-868.31,0.00056712,120]
[342786346,1732140760590,-1122.37,0.00056712,120]
[342786347,1732140760600,-400.36,0.00056712,7]
[342786348,1732140760609,-620.69,0.00056712,120]
[342786349,1732140760619,-1223.49,0.00056712,120]
[342786350,1732140760629,-500.0,0.00056712,120]
[342786351,1732140760638,-1516.54,0.00056712,120]
[342786352,1732140760648,-4704.32,0.00056712,120]
[342786353,1732140760658,-1041.7,0.00056712,120]
[342786354,1732140760668,-500.0,0.00056712,120]
[342786355,1732140760677,-1384.57,0.00056712,120]
[342786356,1732140760687,-1309.89,0.00056712,120]
[342786357,1732140760701,-525.76,0.00056712,120]
[342786358,1732140760711,-500.0,0.00056712,120]
[342786359,1732140760721,-500.0,0.00056712,120]
[342786360,1732140760730,-2257.06,0.00056712,120]
[342786361,1732140760740,-2012.7,0.00056712,120]
[342786362,1732140760749,-500.0,0.00056712,120]
[342786363,1732140760759,-500.0,0.00056712,120]
[342786364,1732140760768,-656.82,0.00056712,120]
[342786365,1732140760778,-1047.88,0.00056712,120]
[342786366,1732140760787,-500.0,0.00056712,120]
[342786367,1732140760796,-500.0,0.00056712,120]
[342786368,1732140760806,-1177.9,0.00056712,120]
[342786369,1732140760815,-1603.42,0.00056712,120]
[342786370,1732140760824,-500.0,0.00056712,120]
[342786371,1732140760834,-1567.54,0.00056712,120]
[342786372,1732140760843,-500.0,0.00056712,120]
[342786373,1732140760853,-834.44,0.00056712,120]
[342786374,1732140760862,-500.0,0.00056712,120]
[342786375,1732140760871,-500.0,0.00056712,120]
[342786376,1732140760880,-2004.44,0.00056712,120]
[342786377,1732140760890,-401.11630744,0.00056712,120]
[342786378,1732140760899,-1050.71,0.00056712,120]
[342786379,1732140760908,-1803.54,0.00056712,120]
[342786380,1732140760918,-650.66,0.00056712,120]
[342786381,1732140760928,-516.91,0.00056712,120]
[342786382,1732140760938,-500.0,0.00056712,120]
[342786383,1732140760955,-500.0,0.00056712,120]
[342786384,1732140760964,-500.0,0.00056712,120]
[342786385,1732140760973,-950.3,0.00056712,120]
[342786386,1732140760982,-4162.19,0.00056712,120]
[342786387,1732140760992,-500.0,0.00056712,120]
[342786388,1732140761001,-729.88,0.00056712,120]
[342786389,1732140761010,-1325.24,0.00056712,120]
[342786390,1732140761019,-1437.64,0.00056712,120]
[342786391,1732140761028,-951.19,0.00056712,120]
[342786392,1732140761037,-500.0,0.00056712,120]
[342786393,1732140761047,-739.2,0.00056712,120]
[342786394,1732140761056,-711.16,0.00056712,120]
[342786395,1732140761065,-35063.23,0.00056712,120]
[342786396,1732140761075,-500.0,0.00056712,120]
[342786397,1732140761085,-758.38,0.00056712,120]
[342786398,1732140761095,-500.0,0.00056712,120]
[342786399,1732140761104,-500.0,0.00056712,120]
[342786400,1732140761113,-500.0,0.00056712,120]
[342786401,1732140761123,-1066.88,0.00056712,120]
[342786402,1732140761134,-500.0,0.00056712,120]
[342786403,1732140761143,-604.09,0.00056712,120]
[342786404,1732140761158,-516.9,0.00056712,120]
[342786405,1732140761168,-1309.97,0.00056712,120]
[342786406,1732140761177,-1271.19,0.00056712,120]
[342786407,1732140761509,-1776.53,0.00056712,120]
[342786408,1732140761520,-1055.78,0.00056712,120]
[342786409,1732140761529,-2027.31,0.00056712,120]
[342786410,1732140761540,-2957.46,0.00056712,120]
[342786411,1732140761550,-565.96,0.00056712,120]
[342786412,1732140761559,-3450.26,0.00056712,120]
[342786413,1732140761568,-1015.77,0.00056712,120]
[342786414,1732140761578,-500.0,0.00056712,120]
[342786415,1732140761587,-5653.29,0.00056712,120]